Cogmind - Beta 16 --- EXPLORER MODE // 2026.01.06 @ 13:20:50 Player: K.K.Y. Result: Destroyed by 88-5YE(R) with Subdweller Machine Gun Performance ------------- Evolutions (0) 0 Regions Visited (3) 600 Robots Destroyed (37) 185 Value Destroyed (964) 964 Prototype IDs (19) 380 Alien Tech Used (0) 0 Bonus (-85) -85 TOTAL SCORE: 2044 Bonus ------- Follower Combat Kills 30 Friendly Fire -115 Cogmind --------- Core Integrity 0/250 Matter 252/300 Energy 100/100 System Corruption 0% Temperature Cool (0) Movement Treading (240) Ox1 Location -10/Subcaves Parts ------- > --- POWER (1) -------- (None) > --- PROPULSION (2) --- Light Treads > --- UTILITY (3) ------ Large Storage Unit Structural Scanner Makeshift Hacking Suite > --- WEAPON (2) ------- Battle Rifle Battle Cannon > --- INVENTORY (15) --- Ion Engine Ion Engine Improved Ion Engine Light Nuclear Core Cargo Legs Improved Heat Sink Improved Heat Sink High-capacity Storage Unit Huge Storage Unit Light Armor Plating Riot Gun Subdweller Beam Cannon Subdweller Machine Gun Multitool Peak State ------------ > --- POWER ------------ Makeshift Power Source > --- PROPULSION ------- Light Treads Light Treads > --- UTILITY ---------- Large Storage Unit Structural Scanner Light Armor Plating > --- WEAPON ----------- Subdweller Laser Subdweller Machine Gun > --- INVENTORY -------- Ion Engine Light Nuclear Core Cargo Legs Improved Heat Sink Improved Heat Sink High-capacity Storage Unit Huge Storage Unit Multitool [Rating: 16] Favorites ----------- Power Ion Engine Engine Ion Engine Propulsion Light Treads Treads Light Treads Utility Structural Scanner Device Structural Scanner Storage Large Storage Unit Processor Targeting Computer Hackware Makeshift Hacking Suite Protection Light Armor Plating Weapon Medium Laser Energy Gun Medium Laser Ballistic Gun Assault Rifle Ballistic Cannon Battle Cannon Special Weapon Mining Laser Special Melee Weapon Datajack Build | -11 -10 -10 -10 ------- Run | Yrd Mat Min Sub Slots Evolved 1 | . 1 . . Power . | . . . . Propulsion . | . . . . Utility 1 | . 1 . . Weapon . | . . . . Parts Attached 34 | 8 8 3 15 Power 3 | 1 1 . 1 Engine 3 | 1 1 . 1 Core . | . . . . Reactor . | . . . . Propulsion 6 | 2 . . 4 Treads 6 | 2 . . 4 Leg . | . . . . Wheel . | . . . . Hover . | . . . . Flight . | . . . . Utility 9 | 3 2 2 2 Device 2 | . 2 . . Storage 3 | 1 . 2 . Processor 2 | 2 . . . Hackware 1 | . . . 1 Protection 1 | . . . 1 Artifact . | . . . . Weapon 16 | 2 5 1 8 Energy Gun 6 | . 2 . 4 Energy Cannon . | . . . . Ballistic Gun 7 | 2 2 . 3 Ballistic Cannon 1 | . . . 1 Launcher . | . . . . Special Weapon 1 | . 1 . . Impact Weapon . | . . . . Slashing Weapon . | . . . . Piercing Weapon . | . . . . Special Melee Weapon 1 | . . 1 . Unidentified Prototypes . | . . . . Parts Lost 12 | . . . 12 Power 2 | . . . 2 Propulsion 4 | . . . 4 Utility 2 | . . . 2 Weapon 4 | . . . 4 Highest Loss Streak 6 | . . . 6 To Critical Strikes 2 | . . . 2 Average Backups 9 | 1 6 11 11 Power 1 | . . 1 2 Propulsion 1 | . . 2 1 Utility 4 | . 3 5 4 Weapon 1 | . 1 1 1 Tool/Special . | . . . . Unused Backups 13 | . . . 13 Power 4 | . . . 4 Propulsion 1 | . . . 1 Utility 4 | . . . 4 Weapon 3 | . . . 3 Tool/Special 1 | . . . 1 Average Slot Usage (%) 94 | . 97 100 89 Engine 9 | . 12 12 5 Treads 24 | . 24 25 23 Device 20 | . 21 25 16 Storage 11 | . 9 12 12 Processor 1 | . 4 . . Hackware 1 | . . . 3 Energy Gun 10 | . 3 12 14 Ballistic Gun 10 | . 21 . 6 Special Melee Weapon 2 | . . 11 1 Peak Build Rating 16 | 7 9 9 16 Average Rating 10 | 5 8 9 12 On Entrance 6 | . 7 9 9 Avg Prop Armor Cover (%) . | . . . . Naked Turns . | . . . . Heaviest Build 36 | 6 21 30 36 Greatest Support 40 | 40 40 40 40 Greatest Overweight (x) 8 | . . . 8 Average Overweight (x) . | . . . . Largest Inventory Capacity 25 | 10 10 25 15 Average Capacity 12 | 5 8 13 15 Most Carried 15 | 5 10 12 15 Average Carried 10 | 1 6 11 12 Final Capacity 15 | 5 10 15 15 Final Carried 15 | 2 10 12 15 Class Distribution -------------------- 98% | Hacker-Mutant Dominant Class ---------------- Hacker-Mutant | -10/Materials Hacker-Mutant | -10/Mines Hacker-Mutant | -10/Subcaves Resources | -11 -10 -10 -10 ----------- Run | Yrd Mat Min Sub Matter Collected 1016 | 312 314 40 350 Remotely . | . . . . Salvage Created 1542 | 147 791 . 604 Parts 94 | 11 49 . 34 Haulers Intercepted 2 | . 2 . . Recyclers Shooed 1 | . 1 . . Parts Field Recycled . | . . . . Retrieved Matter . | . . . . Parts Self-Destructed . | . . . . Prevented . | . . . . Parts Restored . | . . . . Kills | -11 -10 -10 -10 ------- Run | Yrd Mat Min Sub Combat Hostiles Destroyed 22 | . 8 . 14 Guns 21 | . 8 . 13 Cannons 1 | . . . 1 Classes Destroyed 11 | 2 5 . 4 Builder 2 | . 2 . . Tunneler 2 | 2 . . . Hauler 2 | . 2 . . Recycler 4 | 1 3 . . Mechanic 1 | . 1 . . Watcher 3 | . 3 . . Swarmer 1 | . . . 1 Grunt 8 | . 8 . . Artisan 3 | . . . 3 Subdweller 13 | . . . 13 Zionite 1 | . . . 1 Best Kill Streak 6 | 2 6 . 3 Combat Bots Only 4 | . 4 . 3 Max Kills in Single Turn 1 | 1 1 . 1 Gunslinging . | . . . . Exploded . | . . . . Melee . | . . . . Uniques/NPCs Destroyed . | . . . . Combat | -11 -10 -10 -10 -------- Run | Yrd Mat Min Sub Hostile Shots Fired 162 | . 36 . 126 Missed 45 | . 12 . 33 Hits 117 | . 24 . 93 Projectile 117 | . 24 . 93 AOE 2 | . . . 2 Critical Strikes 5 | . 1 . 4 Damage Taken 1508 | . 189 . 1319 Core 259 | . 12 . 247 Absorbed by Shields . | . . . . Ignored by Resistances 878 | . 120 . 758 Core Remaining (%) 100 | 100 . . . Volleys Fired 172 | 8 49 2 113 Largest 2 | 2 2 1 2 Hottest 150 | 40 100 50 150 Shots Fired 312 | 16 97 2 197 Gun 296 | 16 96 2 182 Cannon 12 | . . . 12 Launcher . | . . . . Special 4 | . 1 . 3 Kinetic 184 | 16 92 . 76 Thermal 128 | . 5 2 121 Explosive . | . . . . Electromagnetic . | . . . . Robot Hit Streak 50 | 10 26 8 50 Robot Miss Streak 2 | 1 2 . 1 Penetration Max . | . . . . Secondary Targets 3 | . 3 . . Max Gunslinging Chain 1 | . 1 . . Shots Hit Robots 240 | 13 79 15 133 Core Hits 79 | 5 40 . 34 Critical Kills . | . . . . Critical Parts Destroyed 3 | . 1 . 2 Critical Strikes 10 | . 1 . 9 Burn 2 | . . . 2 Destroy 6 | . 1 . 5 Blast 2 | . . . 2 Melee Attacks 15 | . . 14 1 Impact . | . . . . Slashing . | . . . . Piercing . | . . . . Sneak Attacks 13 | . . 13 . Combat Hostiles . | . . . . Follow-up Attacks . | . . . . Damage Inflicted 3310 | 136 788 26 2360 Guns 3183 | 136 788 26 2233 Cannons 103 | . . . 103 Explosions . | . . . . Melee . | . . . . Ramming . | . . . . Kinetic 1798 | 136 747 . 915 Thermal 1512 | . 41 26 1445 Explosive . | . . . . Electromagnetic . | . . . . Impact . | . . . . Slashing . | . . . . Piercing . | . . . . Highest Corruption . | . . . . Average Corruption . | . . . . Corruption Purged . | . . . . Corruption Blocked . | . . . . Overload Shots . | . . . . Overflow Damage . | . . . . Projectiles . | . . . . Explosions . | . . . . Melee . | . . . . Knockbacks . | . . . . Impact . | . . . . Kinetic . | . . . . Secondary . | . . . . Self-Inflicted Damage . | . . . . Shots . | . . . . Rammed . | . . . . Targets Rammed . | . . . . Kicked . | . . . . Crushed . | . . . . Highest Temperature 90 | . 90 20 8 Average Temperature 14 | . 22 10 3 Received Heat Transfer 636 | . 192 . 444 Siege Activations . | . . . . Martial Activations . | . . . . Shielding Activations . | . . . . Robots Disrupted . | . . . . Combat Hostiles . | . . . . Robots Corrupted . | . . . . Combat Hostiles . | . . . . Parts Fried . | . . . . Impact Corruptions . | . . . . Robots Melted . | . . . . Combat Hostiles . | . . . . Parts Melted 3 | . . . 3 Heat Transferred 3257 | . 111 74 3072 Parts Sabotaged . | . . . . Parts Stolen . | . . . . Parts Stripped . | . . . . Power Chain Reactions . | . . . . Alert | -11 -10 -10 -10 ------- Run | Yrd Mat Min Sub Maximum Alert Level . | . . . . Low Security (%) 100 | 100 100 100 . Level 1 . | . . . . Level 2 . | . . . . Level 3 . | . . . . Level 4 . | . . . . Level 5 . | . . . . High Security . | . . . . Max Security . | . . . . Peak Influence 90 | 5 90 4 . Initial 4 | . . 4 . Average 3 | 1 6 . . Influence Increases 361 | 15 316 . 30 Destroy 0b10 Robot/C 180 | . 160 . 20 Destroy 0b10 Robot/NC 70 | 15 55 . . Destroy Leader 60 | . 50 . 10 Successful Hack 31 | . 31 . . Disable Machine 4 | . 4 . . Destroy Structure 1 | . 1 . . Lose Combat Pursuer 15 | . 15 . . Influence Decreases 361 | 15 301 15 30 Entered New Map 11 | . . 11 . Time Decay 350 | 15 301 4 30 Squads Dispatched 3 | . 3 . . Investigation 3 | . 3 . . Extermination . | . . . . Reinforcement . | . . . . Assault . | . . . . Garrison . | . . . . Intercept . | . . . . Searches Triggered . | . . . . Construction Impeded . | . . . . Haulers Reinforced . | . . . . Active Scanning Responses . | . . . . Cargo Convoy Interrupts . | . . . . Stealth | -11 -10 -10 -10 --------- Run | Yrd Mat Min Sub Distress Signals 1 | . 1 . . Communications Jammed . | . . . . Distress Signals . | . . . . Times Spotted 39 | . 22 . 17 Peak Tracking Total 5 | . 5 . 3 Tactical Retreats 1 | . 1 . . Traps | -11 -10 -10 -10 ------- Run | Yrd Mat Min Sub Traps Triggered 2 | . 1 . 1 Indirectly . | . . . . Trap Hack Attempts . | . . . . Triggered . | . . . . Disarmed . | . . . . Reprogrammed . | . . . . Reused . | . . . . Traps Extracted . | . . . . Installed . | . . . . Triggered . | . . . . Machines | -11 -10 -10 -10 ---------- Run | Yrd Mat Min Sub Machines Disabled 3 | . 1 . 2 Max in Single Turn 1 | . 1 . 1 Machines Repaired . | . . . . Machines Dismantled . | . . . . Machines Sabotaged . | . . . . Overloaded Fab Kills . | . . . . Hacking | -11 -10 -10 -10 --------- Run | Yrd Mat Min Sub Machines Accessed 11 | . 10 . 1 Terminals 8 | . 8 . . Fabricators . | . . . . Repair Stations . | . . . . Recycling Units 2 | . 2 . . Scanalyzers . | . . . . Garrison Access . | . . . . Total Hacks 34 | . 33 . 1 Successful 25 | . 24 . 1 Failed 9 | . 9 . . Catastrophic . | . . . . Database Lockouts . | . . . . Manual 32 | . 32 . . Terminals 29 | . 29 . . Fabricators . | . . . . Repair Stations . | . . . . Recycling Units 4 | . 4 . . Scanalyzers . | . . . . Garrison Access . | . . . . Terminal Hacks 13 | . 12 . 1 Record 1 | . 1 . . Robot Analysis 6 | . 6 . . Prototype ID Bank 5 | . 5 . . Proto ID Catalog 1 | . . . 1 Fabricator Hacks . | . . . . Repair Station Hacks . | . . . . Recycling Unit Hacks 2 | . 2 . . Retrieve Components 2 | . 2 . . Scanalyzer . | . . . . Garrison Access Hacks . | . . . . Unauthorized Hacks 10 | . 10 . . Terminals 8 | . 8 . . Botnet 8 | . 8 . . Fabricators . | . . . . Repair Stations . | . . . . Recycling Units 2 | . 2 . . Reject 2 | . 2 . . Scanalyzers . | . . . . Garrison Access . | . . . . Data Cores Recovered . | . . . . Used . | . . . . Hacking Detections 9 | . 9 . . Full Trace Events 4 | . 4 . . Feedback Events . | . . . . Feedback Blocked . | . . . . Robot Schematics Acquired . | . . . . Robots Built . | . . . . Authchips . | . . . . Time . | . . . . Total Robot Build Rating . | . . . . Part Schematics Acquired . | . . . . Parts Built . | . . . . Authchips . | . . . . Time . | . . . . Total Part Build Rating . | . . . . Part Studies Acquired . | . . . . Parts Repaired . | . . . . Time . | . . . . Parts Recycled . | . . . . Recycled Matter . | . . . . Retrieved Matter . | . . . . Retrieved Components 18 | . 18 . . Parts Scanalyzed . | . . . . Part Schematics Acquired . | . . . . Parts Damaged . | . . . . Bothacking | -11 -10 -10 -10 ------------ Run | Yrd Mat Min Sub Used RIF Installer . | . . . . Robots Hacked 8 | . . 7 1 Non-combat 4 | . . 4 . Combat 4 | . . 3 1 Robot Hacks Applied 8 | . . 7 1 parse_system 4 | . . 3 1 no_distress 4 | . . 4 . Relay Couplers Released . | . . . . Fabnet Peak Effective % . | . . . . Robots Rewired . | . . . . Allies Hacked . | . . . . Hacks Repelled . | . . . . Allies | -11 -10 -10 -10 -------- Run | Yrd Mat Min Sub Total Allies 2 | . . 2 . Largest Group 2 | . . 2 2 Highest-Rated Group 43 | . . 43 43 Highest-Rated Ally 31 | . . 31 31 Total Orders . | . . . . Ally Attacks 6 | . . . 6 Total Damage 44 | . . . 44 Kills 1 | . . . 1 Allies Corrupted . | . . . . Allies Melted . | . . . . Intel | -11 -10 -10 -10 ------- Run | Yrd Mat Min Sub Active Infowar (turns) 4365 | . 1308 1040 2017 Sensors 3100 | . 1308 1040 752 Structural 4363 | . 1306 1040 2017 Robot Analysis Total 6 | . 6 . . Derelict Logs Recovered 2 | . . 1 1 Drone Launches . | . . . . Drone Recoveries . | . . . . Exploration | -11 -10 -10 -10 ------------- Run | Yrd Mat Min Sub Turns Passed 4703 | 110 1536 1040 2017 Spaces Moved 2468 | 59 836 592 981 Core 22 | 21 . . 1 Treads 2446 | 38 836 592 980 Legs . | . . . . Wheels . | . . . . Hover . | . . . . Flight . | . . . . Fastest Speed 50 | 50 160 160 160 Average Speed 160 | 120 160 160 163 Slowest Speed 450 | 160 160 160 450 Overloaded Moves . | . . . . Propulsion Burnouts . | . . . . Robots Hopped . | . . . . Potential Cave-ins . | . . . . Cave-ins Triggered . | . . . . Exploration Rate (%) 64 | 4 99 99 54 Regions Visited 3 Branch Regions 2 Pre-discovered Areas . | . . . . Known Exits Taken 3 | 1 1 1 . Unknown Exits Taken . | . . . . Scrap Searched 5 | . . 1 4 Spaces Dug 5 | . . . 5 Terrain Destroyed 5 | . . . 5 Melee . | . . . . Projectile 5 | . . . 5 AOE . | . . . . Terrain Rammed . | . . . . Walls Destroyed . | . . . . Machines Disabled . | . . . . Actions | -11 -10 -10 -10 --------- Run | Yrd Mat Min Sub Total 2893 | 84 943 675 1191 Wait 131 | . 24 58 49 Move 2465 | 58 835 591 981 Hop . | . . . . Pick Up 44 | 9 16 4 15 Fast Attach 5 | . 3 . 2 Attach 24 | 8 4 . 12 Detach 5 | 1 1 . 3 Swap 18 | . 6 4 8 Drop 14 | . 5 2 7 Fire 172 | 8 49 2 113 Melee 15 | . . 14 1 Ram . | . . . . Kick . | . . . . Crush . | . . . . Escape Stasis . | . . . . Rewire . | . . . . Trap . | . . . . Miscellaneous . | . . . . Route ------- -11/Scrapyard -10/Materials (discovered 6 exits: *Mat x3 / *Min x2 / *Sub) -10/Mines (discovered 4 exits: *Mat x2 / Exi / *Sub) -10/Subcaves (discovered 3 exits: *Mat / Rec / [*Scr]) History --------- Turn | Location | Event 9 | -11/Scrapyard | Identified exit to Materials 9 | -11/Scrapyard | Discovered exit to Materials (range 16) 111 | -11/Scrapyard | Entered Materials 111 | -10/Materials | Evolved 1 slot: Utility x1 309 | -10/Materials | Build established: Hacker-Mutant 387 | -10/Materials | Identified exit to Mines 387 | -10/Materials | Discovered exit to Mines (range 16) 751 | -10/Materials | Identified exit to Materials 751 | -10/Materials | Discovered exit to Materials (range 3) 847 | -10/Materials | Identified exit to Subcaves 847 | -10/Materials | Discovered exit to Subcaves (range 14) 999 | -10/Materials | Discovered exit to Mines (range 14) 1085 | -10/Materials | Discovered exit to Materials (range 15) 1384 | -10/Materials | Discovered exit to Materials (range 16) 1647 | -10/Materials | Entered Mines 1658 | -10/Mines | Met a Derelict bent on vengeance 1765 | -10/Mines | Discovered exit to Subcaves (range 7) 1913 | -10/Mines | Found DCF Scrap (12 items) 1978 | -10/Mines | Discovered exit to Materials (range 10) 2024 | -10/Mines | Discovered exit to Materials (range 15) 2122 | -10/Mines | Learned location of 1 exit from Materials 2464 | -10/Mines | Deemed a non-threat by the Exiles lab entrance 2464 | -10/Mines | Identified exit to Exiles 2464 | -10/Mines | Discovered exit to Exiles (range 6) 2687 | -10/Mines | Entered Subcaves 2687 | -10/Subcaves | Accompanied by 2 allies 2688 | -10/Subcaves | Approached by a straggling Scientist 2692 | -10/Subcaves | Led the pair of lost Derelicts to an unsafe place 2694 | -10/Subcaves | Scientist uncovered a shortcut to Scraptown 2694 | -10/Subcaves | Identified exit to Recycling 2758 | -10/Subcaves | Identified exit to Materials 2758 | -10/Subcaves | Discovered exit to Materials (range 11) 2836 | -10/Subcaves | Disturbed a concealed Subdweller 3065 | -10/Subcaves | A swath of the cavern ceiling suddenly collapsed 3256 | -10/Subcaves | Visited 4L-MR0's lab 3287 | -10/Subcaves | Found Cargo Legs 3476 | -10/Subcaves | Lost 6 parts (1p2n1u2w) 3487 | -10/Subcaves | Ambushed by angry Subdweller bent on revenge 3723 | -10/Subcaves | Core integrity fell below 50% 3724 | -10/Subcaves | Ambushed by Subdwellers from Twisted Machinery 3877 | -10/Subcaves | Core integrity fell below 20% 4073 | -10/Subcaves | Shifting Twisted Machinery released Mak. Hacking Suite 4076 | -10/Subcaves | Shifting Twisted Machinery released Battle Rifle 4234 | -10/Subcaves | Shifting Twisted Machinery released Sub. Laser 4236 | -10/Subcaves | Shifting Twisted Machinery released Sub. Beam Cannon 4704 | -10/Subcaves | Destroyed by 88-5YE(R) with Subdweller Machine Gun Last Messages --------------- 04272_ Acquired Sub. Beam Cannon. 04329_ Subatomizers dissect the Disposable Heat Sink. 04331_ Acquired 44 matter. 04341_ Subatomizers dissect the Disposable Heat Sink. 04460_ Searching scrap... 04460_ Found Battle Cannon. 04460_ Found 62 Matter. 04464_ Dropped Sub. Laser. 04464_ Acquired Battle Cannon. 04466_ Acquired 10 matter. 04505_ Acquired 8 matter. 04541_ S-10 Pest destroyed. 04543_ Acquired 8 matter. 04608_ U5-AWV(R) Sub. Power Source blasted off. 04609_ Lgt. Treads destroyed. 04611_ U5-AWV(R) Sub. Optics blasted off. 04611_ U5-AWV(R) destroyed. 04616_ Acquired 27 matter. Map ----- +----------------------------------------------------+ | ?????????????????????????????????????????????????? | | ?????????????????????????????????????????????????? | | ?????????????????????????????????????????????????? | | ?????????????????????????????????????????????????? | | ?????????????????????????????????????????????????? | | ?????????????????????????????????????????????????? | | ?????????????????????????????????????????????????? | | ?????????????????????????????????????????????????? | | ?????????????????????????????????????????????????? | | ?????????????????????????????????????????????????? | | ?????????????????????????????????????????????????? | | ?????????????????????????????????????????????????? | | ?????????????????????????????????????????????????? | | ?????????????????????????????????????????????????? | | ????????#####????????????????????????????????????? | | ????????############?????????????????????????????? | | ????????## #################?????????????????????? | | ????????### # ################???????????????? | | #####???### ## # #!#% # # ####### ???????????????? | | ######???## # ## ##*! # # #?????????????? | | # ####?#### #######%" "" "" ##?????????????? | | ## ####### ### ##### """"" ##?????????????? | | ### #####"# ##??######### ""#"" ????????????????? | | ### ### #####?###########R"#""?????????????????? | | ###### =%########## ### ""##"?????????????????? | | ########## #??#### "@% ## ????????????????? | | ????#### ##??### # """ ###???????????????? | | ?????????????## #### ""##" ""##???????????????? | | ?????????????############# #####???????????????? | | ?????????????#####################???????????????? | | ????????????????????????#######??????????????????? | | ?????????????????????????????????????????????????? | | ?????????????????????????????????????????????????? | | ?????????????????????????????????????????????????? | | ?????????????????????????????????????????????????? | | ?????????????????????????????????????????????????? | | ?????????????????????????????????????????????????? | | ?????????????????????????????????????????????????? | | ?????????????????????????????????????????????????? | | ?????????????????????????????????????????????????? | | ?????????????????????????????????????????????????? | | ?????????????????????????????????????????????????? | | ?????????????????????????????????????????????????? | | ?????????????????????????????????????????????????? | | | | | | | | | | | | | +----------------------------------------------------+ Best States ------------- Heat Dissipation 25 Energy Generation 15 Energy Capacity 250 Matter Stores 300 Matter Capacity 300 Sight Range 16 Robot Scan Range 14 Terrain Scan Density 10 Armor Coverage 150 Resistance: KI 35 Resistance: TH 35 Resistance: EX 35 Resistance: EM 35 Resistance: I 35 Resistance: S 35 Resistance: P 35 Evasion (%) 50 Targeting Accuracy 10 Recoil Reduction 2 Offensive Hacking 31 Item Schematics ----------------- None Robot Schematics ------------------ None Fabricated ------------ Nothing Repaired ---------- Nothing Studied --------- None Alien Tech Used ----------------- None Achievements -------------- None Challenges ------------ None Game ------ Seed NeutrinoIonAccelerator Manual? 0 Play Time 00:25:52 Cumulative 252.9 hours Start 2026.01.06 @ 12:57:51 End 2026.01.06 @ 13:20:50 Sessions 1 Manual Loads 0 Difficulty Explorer Special Mode None Game No. 398 Rogue 0 Adventurer 0 Explorer 398 Win Type - Total 0 Types 0/0/0/0/0/0/0/0/0/0 Lore% 72 Gallery% 69 Achievement% 54 Wizard Run 0 Options --------- Layout 1 ASCII 0 Keyboard 0 Movement Mouse Keybinds 0 Fullscreen 1 Font 24/Smallcaps Map View 50x35 Zoom Use 0% Tactical HUD 1 Map Filters NONE Filters NONE Steam 1 RUN: e052e2ce-32fa-4ebb-9978-7d5c7c78916d